bitfinex/quotes_ETHUSD_20260121
["timestamp","ask_amount","ask_price","bid_price","bid_amount"]
[1768980156930,12.67310928,2979.7,2979.1,17.19998121]
[1768980157139,12.67310928,2979.7,2979.1,15.77584377]
[1768980157538,12.67310928,2979.7,2979.1,16.33084377]
[1768980160162,12.67310928,2979.7,2979.1,16.88584377]
[1768980160362,12.67310928,2979.7,2979.2,12.66679343]
[1768980163177,12.67310928,2979.7,2979.2,13.22179343]
[1768980165740,12.67310928,2979.7,2979.2,13.77679343]
[1768980166438,0.001,2979.5,2979.2,13.77679343]
[1768980168290,0.001,2979.5,2979.2,14.33179343]
[1768980171044,0.001,2979.5,2979.2,14.88679343]
[1768980171776,11.80498897,2979.5,2979.2,2.22]
[1768980172073,1.2370989,2979.5,2979.2,14.88720054]
[1768980172280,0.001,2979.5,2979.2,14.88720054]
[1768980173586,0.001,2979.5,2979.2,15.44220054]
[1768980174687,0.001,2979.5,2978.6,2.777]
[1768980174688,11.80398897,2979.4,2978.6,2.777]
[1768980174894,11.80398897,2979.4,2978.6,15.44420054]
[1768980175102,11.80398897,2979.2,2978.6,15.44420054]
[1768980175878,11.80398897,2979.2,2978.6,15.99920054]
[1768980177998,11.80398897,2979.2,2978.6,3.332]
[1768980178497,11.80398897,2979.2,2978.6,3.887]
[1768980180696,11.80398897,2979.2,2978.6,7.24428167]
[1768980180898,0.556,2979.3,2978.7,12.66720054]
[1768980181195,0.001,2979.3,2978.7,12.66720054]
[1768980181568,0.001,2979.3,2978.6,18.85535545]
[1768980181569,0.001,2979.5,2979.0,12.66720054]
[1768980183367,0.001,2979.5,2979.0,13.22220054]
[1768980183567,0.001,2979.5,2979.0,14.13362304]
[1768980184300,11.80498897,2979.5,2979.0,1.4664225]
[1768980184500,11.80498897,2979.5,2979.0,0.555]
[1768980184914,11.80498897,2979.5,2979.0,13.22220054]
[1768980185223,0.001,2979.5,2979.0,13.22220054]
[1768980185721,0.001,2979.5,2979.0,13.77720054]
[1768980186703,11.80498897,2979.5,2979.0,13.77720054]
[1768980188278,11.80498897,2979.5,2979.0,14.33220054]
[1768980190624,11.80498897,2979.5,2979.0,14.88720054]
[1768980191126,11.80498897,2979.5,2979.2,0.002]
[1768980191311,13.04108787,2979.5,2979.2,0.002]
[1768980191621,0.001,2979.3,2979.2,0.002]
[1768980193215,0.001,2979.3,2979.2,0.557]
[1768980195816,0.001,2979.3,2979.2,1.112]
[1768980198128,0.001,2979.3,2979.2,1.667]
[1768980200515,0.001,2979.3,2979.2,2.222]
[1768980201120,0.001,2979.3,2979.2,13.99319822]
[1768980202018,12.54031526,2980.1,2979.3,11.77119822]
[1768980202222,13.04531526,2980.0,2979.3,11.77119822]
[1768980202927,13.04531526,2980.0,2979.3,12.32619822]
[1768980205432,0.001,2979.8,2979.3,12.32619822]
[1768980205725,0.001,2979.8,2979.3,12.88119822]
[1768980208125,0.001,2979.8,2979.3,13.43619822]
[1768980210409,12.49031526,2980.4,2979.8,11.77119822]
[1768980210630,12.49031526,2980.4,2979.4,12.32619822]
[1768980210631,13.04531526,2980.4,2979.4,12.32619822]
[1768980212148,0.555,2980.4,2979.7,11.77119822]
[1768980212350,12.49031526,2980.7,2979.9,11.77119822]
[1768980212562,13.04531526,2980.7,2979.9,11.77119822]
[1768980213019,13.04531526,2980.7,2979.9,12.32619822]
[1768980213215,14.34984679,2980.7,2979.9,12.32619822]
[1768980213741,1.85953153,2980.7,2980.0,11.77119822]
[1768980213916,14.34984679,2980.7,2980.0,11.77119822]
[1768980215345,14.34984679,2980.7,2980.0,12.32619822]
[1768980216352,13.04531526,2980.7,2980.0,12.32619822]
[1768980216847,0.555,2980.7,2980.0,12.32619822]
[1768980217015,0.555,2980.7,2980.1,11.77119822]
[1768980217438,0.001,2980.5,2980.1,11.77119822]
[1768980217923,0.001,2980.5,2980.1,12.32619822]
[1768980218118,0.001,2980.5,2980.1,14.1574974]
[1768980220527,0.001,2980.5,2980.1,14.7124974]
[1768980221658,12.49031526,2980.1,2979.3,13.99119822]
[1768980221953,12.49031526,2979.7,2979.3,2.22]
[1768980223159,12.49031526,2979.7,2979.3,2.775]
[1768980224529,13.79484679,2979.7,2979.3,2.775]
[1768980225259,13.79484679,2979.7,2979.3,3.33]
[1768980225440,12.49031526,2979.7,2979.3,15.66108302]
[1768980227058,0.555,2979.8,2979.4,12.71321679]
[1768980227264,0.555,2979.8,2979.4,12.68694444]
[1768980227756,0.555,2979.8,2979.4,13.24194444]
[1768980228963,13.12520064,2979.8,2979.4,0.555]
[1768980229179,12.57020064,2979.6,2979.4,0.555]
[1768980229629,12.57020064,2979.6,2979.5,0.002]
[1768980230030,12.57020064,2979.6,2979.5,0.557]
[1768980232445,12.57020064,2979.6,2979.5,1.112]
[1768980233955,12.57020064,2979.6,2979.4,0.555]
[1768980234177,13.58262342,2979.6,2979.3,3.332]
[1768980234336,13.58262342,2979.6,2979.2,2.222]
[1768980234871,13.58262342,2979.6,2979.2,2.777]
[1768980237456,13.58262342,2979.6,2979.1,0.002]
[1768980237675,12.57020064,2979.4,2979.1,0.002]
[1768980238247,13.12520064,2979.4,2979.1,0.002]
[1768980238871,0.555,2979.4,2979.1,12.68894444]
[1768980239839,0.555,2979.4,2979.1,13.24394444]
[1768980240462,0.555,2979.4,2979.1,13.00062944]
[1768980241537,2.10458858,2979.4,2979.1,13.00062944]
[1768980241733,1.54958858,2979.4,2979.1,13.00062944]
[1768980242170,12.57020064,2979.6,2979.1,13.00062944]
[1768980242369,12.57020064,2979.6,2979.1,13.55562944]
[1768980243370,12.57020064,2979.6,2979.3,0.002]
[1768980243973,0.001,2979.4,2979.3,0.002]
[1768980244742,0.001,2979.4,2979.3,12.68894444]
[1768980244963,0.001,2979.4,2979.3,13.24394444]
[1768980247344,0.001,2979.4,2979.3,13.79894444]
[1768980249676,0.001,2979.4,2979.3,1.667]
[1768980250179,12.57120064,2979.4,2979.3,1.667]
[1768980251144,12.57120064,2979.4,2979.3,1.54925843]
[1768980251342,0.98103128,2979.4,2979.3,1.54925843]
[1768980251544,0.001,2979.4,2979.3,1.54925843]
[1768980252179,0.001,2979.4,2979.3,2.10425843]
[1768980254180,12.57120064,2979.4,2979.3,2.10425843]
[1768980254556,12.57120064,2979.4,2979.3,2.47874974]
[1768980254778,12.57120064,2979.4,2979.3,2.20799093]
[1768980255085,12.57120064,2979.4,2979.3,1.75672076]
[1768980256651,0.001,2979.4,2979.3,1.75672076]
[1768980256980,0.001,2979.4,2979.3,2.31172076]
[1768980259167,0.555,2979.7,2979.3,14.12324988]
[1768980259486,0.555,2980.0,2979.5,11.81152912]
[1768980259661,13.52158921,2980.0,2979.5,11.81152912]
[1768980260067,0.555,2980.0,2979.5,11.81152912]
[1768980261995,0.555,2980.0,2979.5,12.36652912]
[1768980262584,13.52158921,2980.0,2979.5,12.36652912]
[1768980264459,13.52158921,2980.0,2979.5,12.92152912]
[1768980266870,13.52158921,2980.0,2979.5,13.47652912]
[1768980268064,13.52158921,2980.0,2979.7,0.002]
[1768980268279,0.001,2979.8,2979.7,0.002]
[1768980269602,0.001,2979.8,2979.7,0.557]
[1768980271896,0.001,2979.8,2979.7,12.36852912]
[1768980272200,0.001,2979.8,2979.7,12.92352912]
[1768980274517,0.001,2979.8,2979.7,1.112]
[1768980274819,0.001,2979.8,2979.7,1.667]
[1768980275927,0.001,2979.8,2979.7,1.54712999]
[1768980276219,0.001,2979.8,2979.7,1.09591222]
[1768980276392,0.001,2979.8,2979.7,0.82517834]
[1768980277219,0.001,2979.8,2979.7,1.38017834]
[1768980278217,0.001,2979.8,2979.7,13.19170746]
[1768980279442,0.001,2979.8,2979.7,13.74670746]
[1768980282632,0.001,2979.8,2979.7,14.30170746]
[1768980283409,0.26926468,2979.8,2979.7,14.30170746]
[1768980284919,0.26930686,2979.8,2979.7,14.30170746]
[1768980285120,0.26930686,2979.8,2979.7,14.85670746]
[1768980287456,0.555,2980.3,2979.8,12.44861571]
[1768980287624,1.2043887,2980.3,2979.8,12.44861571]
[1768980287821,12.66743561,2980.3,2979.8,12.44861571]
[1768980290737,12.66743561,2980.3,2979.8,13.00361571]
[1768980292821,0.001,2980.1,2979.8,13.00361571]
[1768980293020,0.001,2980.1,2979.8,13.55861571]
[1768980295438,0.001,2980.1,2979.8,14.11361571]
[1768980297054,1.26784356,2980.1,2979.8,14.11361571]
[1768980297852,1.26784356,2980.1,2979.8,1.665]
[1768980298035,1.26784356,2980.1,2979.8,14.66861571]
[1768980299364,0.26962265,2980.0,2979.8,14.66861571]
[1768980299572,0.26962265,2979.9,2979.8,14.66861571]
[1768980299938,0.26962265,2980.0,2979.8,14.66861571]
[1768980300139,0.26962265,2979.9,2979.8,14.66861571]
[1768980300441,0.26962265,2979.9,2979.8,15.22361571]
[1768980300638,0.26962265,2980.0,2979.8,15.22361571]
[1768980300833,0.26962265,2979.9,2979.8,15.22361571]
[1768980301069,0.26962265,2980.0,2979.8,15.22361571]
[1768980301275,0.26962265,2979.9,2979.8,15.22361571]
[1768980301440,0.26962265,2980.0,2979.8,15.22361571]
[1768980301642,0.26962265,2979.9,2979.8,15.22361571]
[1768980302044,0.26962265,2980.0,2979.8,15.22361571]
[1768980302339,0.26962265,2979.9,2979.8,15.22361571]
[1768980302672,0.26962265,2980.0,2979.8,15.22361571]
[1768980303244,0.26962265,2980.0,2979.8,15.77861571]
[1768980305989,0.26962265,2980.0,2979.8,16.33361571]
[1768980308265,0.001,2980.1,2979.8,16.33361571]
[1768980308475,0.26968825,2980.0,2979.8,16.88861571]
[1768980308664,12.11243561,2980.5,2980.0,12.44861571]
[1768980308977,0.555,2980.4,2980.0,12.44861571]
[1768980309191,4.87386929,2981.0,2980.0,12.44861571]
[1768980309192,12.11243561,2980.9,2980.0,12.44861571]
[1768980309365,0.555,2980.7,2980.0,12.44861571]
[1768980310976,0.555,2980.7,2980.0,13.00361571]
[1768980312982,12.66743561,2980.7,2980.0,13.00361571]
[1768980313391,12.66743561,2980.7,2980.0,13.55861571]
[1768980313951,17.5413049,2980.7,2980.0,13.55861571]
[1768980314181,13.8665661,2980.6,2980.0,1.11]
[1768980314866,4.87386929,2980.4,2980.0,1.11]
[1768980315048,12.66743561,2980.3,2979.8,4.44]
[1768980315679,12.66743561,2980.3,2979.8,4.995]
[1768980315879,12.66743561,2980.3,2979.8,17.02347453]
[1768980316082,12.27976513,2980.7,2979.9,12.02847453]
[1768980316283,0.001,2980.5,2979.9,12.02847453]
[1768980318184,0.001,2980.5,2979.9,12.58347453]
[1768980320463,0.001,2980.5,2979.9,13.13847453]
[1768980323176,0.001,2980.5,2979.9,13.69347453]
[1768980323485,0.001,2980.5,2980.1,12.02847453]
[1768980325889,0.001,2980.5,2980.1,12.58347453]
[1768980328173,0.001,2980.3,2980.1,13.13847453]
[1768980330694,0.001,2980.3,2980.1,13.69347453]
[1768980333298,0.001,2980.3,2980.1,14.24847453]
[1768980334067,0.001,2980.5,2980.2,12.02847453]
[1768980335595,0.001,2980.5,2980.2,12.58347453]
[1768980338204,0.001,2980.5,2980.2,13.13847453]
[1768980339787,12.28076513,2980.5,2980.2,1.11]
[1768980339989,12.28076513,2980.3,2980.2,1.11]
[1768980340386,0.001,2980.3,2980.2,1.11]
[1768980340588,0.001,2980.3,2980.2,1.665]
[1768980341607,12.28076513,2980.3,2979.9,1.665]
[1768980341812,12.28076513,2980.3,2979.8,4.995]
[1768980341995,12.27976513,2980.1,2979.8,4.995]
[1768980343212,12.27976513,2980.1,2979.8,5.55]
[1768980346413,12.27976513,2980.1,2979.8,6.105]
[1768980346577,12.27976513,2980.1,2979.7,3.60017834]
[1768980349020,12.27976513,2980.1,2979.7,4.15517834]
[1768980349186,14.47530527,2980.0,2979.7,4.15517834]
[1768980350515,1.94240979,2980.0,2979.7,4.15517834]
[1768980351217,12.53289548,2980.1,2979.7,4.15517834]
[1768980351412,12.53289548,2980.1,2979.7,4.71017834]
[1768980351813,12.53289548,2980.1,2979.7,17.37905578]
[1768980352313,0.555,2980.2,2979.8,12.66887744]
[1768980352519,0.555,2980.2,2980.0,12.66887744]
[1768980352720,0.555,2980.2,2979.9,0.002]
[1768980353292,1.36052004,2980.2,2979.9,0.002]
[1768980353721,1.27976685,2980.2,2979.9,12.67087744]
[1768980353923,0.001,2980.3,2980.0,12.66887744]
[1768980356525,0.001,2980.3,2980.0,13.22387744]
[1768980358928,0.001,2980.3,2980.0,13.77887744]
[1768980361635,0.001,2980.3,2980.0,14.33387744]
[1768980364042,0.001,2980.3,2980.0,14.88887744]
[1768980364218,0.001,2980.3,2980.1,12.66887744]
[1768980366422,0.001,2980.3,2980.1,13.22387744]
[1768980369054,0.001,2980.3,2980.1,13.77887744]
[1768980371365,0.001,2980.3,2980.1,1.11]
[1768980371539,12.53389548,2980.3,2980.1,1.665]
[1768980371869,12.53389548,2980.3,2980.1,1.51382498]
[1768980374263,12.53389548,2980.3,2980.1,2.06882498]
[1768980375153,12.53389548,2980.3,2980.1,1.97859142]
[1768980375460,12.53389548,2980.3,2980.1,1.58847704]
[1768980375756,0.001,2980.3,2980.1,1.04774336]
[1768980376163,0.001,2980.3,2980.1,12.76780349]
[1768980376745,0.001,2980.3,2980.1,13.32280349]
[1768980377931,0.001,2980.3,2980.1,1.60274336]
[1768980378850,0.001,2980.3,2980.1,13.32280349]
[1768980379257,0.001,2980.3,2980.1,13.87780349]
[1768980381738,0.001,2980.3,2980.1,14.43280349]
[1768980384244,0.001,2980.3,2980.2,11.72006013]
[1768980384648,0.17520548,2981.7,2980.2,13.99584048]
[1768980384843,11.71975065,2981.4,2980.2,13.99584048]
[1768980385039,11.71975065,2981.4,2980.5,11.72006013]
[1768980385254,11.71975065,2981.5,2980.7,11.72006013]
[1768980385438,12.94722571,2981.5,2980.7,11.72006013]
[1768980386852,12.94722571,2981.5,2980.7,12.27506013]
[1768980388838,11.71975065,2981.5,2980.7,12.27506013]
[1768980389238,0.555,2981.6,2980.7,12.83006013]
[1768980389239,12.27475065,2981.6,2980.7,12.83006013]
[1768980389475,12.27475065,2981.6,2980.8,11.72006013]
[1768980389476,0.001,2981.3,2980.8,11.72006013]
[1768980392476,0.001,2981.3,2980.8,12.27506013]
[1768980395279,0.001,2981.3,2980.8,12.83006013]
[1768980395449,0.001,2981.3,2981.0,11.72006013]
[1768980396556,11.71975065,2981.5,2981.0,11.72006013]
[1768980396557,11.71975065,2981.5,2981.0,16.59226571]
[1768980397885,11.71975065,2981.5,2981.1,11.72006013]
[1768980399261,12.27475065,2981.6,2981.1,11.72006013]
[1768980400290,12.27475065,2981.6,2981.1,12.27506013]
[1768980402793,12.27475065,2981.6,2981.2,0.002]
[1768980403091,0.001,2981.4,2981.2,0.002]
[1768980405189,0.001,2981.4,2981.2,0.557]
[1768980407208,0.555,2981.6,2981.2,12.7265437]
[1768980407508,13.20167435,2981.6,2981.2,12.7265437]
[1768980407709,13.20167435,2981.6,2981.2,1.112]
[1768980408011,14.52184178,2981.6,2981.2,1.112]
[1768980410189,14.52184178,2981.6,2981.2,1.667]
[1768980412614,14.52184178,2981.6,2981.2,2.222]
[1768980415286,14.52184178,2981.6,2981.2,2.777]
[1768980415883,14.52184178,2981.6,2981.2,14.9465437]
[1768980417216,14.52184178,2981.6,2981.4,0.002]
[1768980417387,0.001,2981.4,2981.2,14.9465437]
[1768980417888,0.001,2981.4,2981.2,3.332]
[1768980418092,13.20167435,2981.6,2981.2,3.332]
[1768980418288,0.554,2981.9,2981.4,12.1695437]
[1768980418498,13.96674178,2981.8,2981.4,12.1695437]
[1768980418707,13.96674178,2981.8,2981.2,15.5015437]
[1768980420620,13.96674178,2981.8,2981.2,16.0565437]
[1768980423630,13.96674178,2981.8,2981.2,16.6115437]
[1768980426216,13.96674178,2981.8,2981.2,17.1665437]
[1768980428812,13.96674178,2981.8,2981.2,17.7215437]
[1768980430206,12.64667435,2981.8,2981.2,17.7215437]
[1768980430820,12.64667435,2981.8,2981.2,5.552]
[1768980431018,12.64667435,2981.8,2981.3,12.1695437]
[1768980431221,12.64667435,2981.8,2981.4,0.002]
[1768980433617,12.64667435,2981.8,2981.2,6.10698131]
[1768980433907,12.64667435,2981.6,2981.2,3.59467362]
[1768980434724,12.64667435,2981.8,2981.2,3.59467362]
[1768980436640,12.64667435,2981.8,2981.2,4.14967362]
[1768980437039,12.64667435,2981.8,2981.3,12.64892903]
[1768980437352,12.64667435,2981.8,2981.4,12.64892903]
[1768980437641,0.80232148,2982.3,2981.7,12.64892903]
[1768980437833,1.35632148,2982.5,2981.7,12.64892903]
[1768980438034,0.80232148,2982.7,2982.0,12.64892903]
[1768980438615,1.35632148,2982.9,2982.3,12.64892903]
[1768980439014,1.35632148,2982.9,2982.3,13.20392903]
[1768980439216,0.554,2982.9,2982.3,13.20392903]
[1768980439709,0.80232148,2983.1,2982.3,13.20392903]
[1768980439913,0.80232148,2983.5,2982.6,12.64892903]
[1768980440919,0.80232148,2983.5,2982.6,13.20392903]
[1768980441141,0.80232148,2983.5,2982.9,12.64892903]
[1768980441528,0.80232148,2983.5,2982.9,13.20392903]
[1768980441715,0.80232148,2983.4,2982.9,13.20392903]
[1768980442233,1.27311291,2983.5,2982.9,13.20392903]
[1768980442437,0.80232148,2983.5,2982.9,13.20392903]
[1768980443948,0.554,2983.6,2982.9,13.20392903]
[1768980444142,0.554,2983.6,2982.9,13.75892903]
[1768980444641,0.001,2983.3,2982.9,13.75892903]
[1768980445024,0.001,2983.3,2983.0,0.554]
[1768980445228,0.001,2983.3,2983.1,12.64892903]
[1768980446748,0.001,2983.3,2983.1,13.20392903]
[1768980448346,0.001,2983.3,2983.1,14.69072193]
[1768980449143,0.001,2983.3,2983.1,15.24572193]
[1768980450449,0.001,2983.3,2983.1,13.75892903]
[1768980450649,0.001,2983.3,2983.1,13.50764052]
[1768980450954,0.001,2983.3,2983.1,13.16282444]
[1768980451253,0.001,2983.3,2983.1,12.91652004]
[1768980451639,0.001,2983.3,2983.1,13.47152004]
[1768980452339,0.001,2983.3,2983.1,13.44329607]
[1768980452539,0.001,2983.3,2983.1,1.43055257]
[1768980452745,0.001,2983.3,2983.1,1.16997394]
[1768980452945,0.001,2983.3,2983.1,1.09178541]
[1768980453138,0.001,2983.3,2983.1,0.88326992]
[1768980453334,0.001,2983.3,2983.1,0.59299212]
[1768980453538,0.001,2983.3,2983.1,0.54086116]
[1768980453752,0.001,2983.3,2983.1,0.43659841]
[1768980453928,0.001,2983.3,2983.1,0.75749062]
[1768980454124,0.001,2983.3,2983.1,0.54890379]
[1768980454320,0.001,2983.3,2983.1,0.28455709]
[1768980454520,0.001,2983.3,2983.1,0.04977581]
[1768980454842,0.001,2983.3,2983.0,12.64892903]
[1768980455028,0.001,2983.3,2982.9,13.75892903]
[1768980456961,0.001,2983.3,2982.9,14.31392903]
[1768980459445,8.31715953,2983.3,2982.9,2.22]
[1768980459976,8.31715953,2983.3,2982.9,14.86892903]
[1768980460870,0.001,2983.3,2982.9,14.86892903]
[1768980461865,0.001,2983.3,2982.9,15.42392903]
[1768980462279,8.31715953,2983.3,2982.6,12.64892903]
[1768980462479,9.44243344,2983.1,2982.4,13.20292903]
[1768980463973,9.44243344,2983.0,2982.4,13.20292903]
[1768980464151,9.44243344,2983.0,2982.4,9.29071541]
[1768980464352,9.44243344,2983.0,2982.3,1e-08]
[1768980465014,11.94449591,2982.8,2982.3,1e-08]
[1768980465300,13.1943455,2982.8,2982.3,1e-08]
[1768980467185,13.1943455,2982.8,2982.3,0.55500001]
[1768980467384,13.1943455,2982.8,2982.3,0.4971385]
[1768980467588,13.1943455,2982.8,2982.3,0.32783238]
[1768980467794,13.1943455,2982.8,2982.3,0.07386804]
[1768980467986,13.44703821,2982.7,2982.2,12.64892903]
[1768980468762,13.44703821,2982.7,2982.0,12.89912234]
[1768980469196,13.44703821,2982.7,2982.5,0.002]
[1768980469509,13.44703821,2982.7,2982.1,12.34512234]
[1768980469707,13.44703821,2982.7,2982.3,0.002]
[1768980469992,13.44703821,2982.7,2982.3,12.34712234]
[1768980472265,13.44703821,2982.7,2982.3,12.90212234]
[1768980472465,1.71007917,2982.7,2982.3,12.90212234]
[1768980473401,13.44703821,2982.7,2982.3,12.90212234]
[1768980473698,1.22539866,2982.6,2982.3,9.5437697]
[1768980474070,11.73695904,2982.7,2982.3,6.48711949]
[1768980474300,11.73695904,2982.7,2982.3,0.555]
[1768980474476,11.73695904,2982.7,2982.3,1.01056205]
[1768980474671,11.73695904,2982.7,2982.3,0.99310926]
[1768980476509,11.73695904,2982.7,2982.3,1e-08]
[1768980476706,11.73695904,2982.7,2982.1,0.555]
[1768980476707,11.73695904,2982.5,2982.1,0.555]
[1768980476867,11.73695904,2982.5,2982.1,0.5092256]
[1768980477080,11.73695904,2982.5,2981.9,12.89912234]
[1768980477708,11.73695904,2982.1,2981.4,0.002]
[1768980477918,11.73695904,2981.9,2981.4,0.002]
[1768980478201,11.73695904,2981.7,2981.2,16.49479596]
[1768980478406,11.73695904,2981.7,2981.2,4.14967362]
[1768980478921,11.73695904,2981.7,2981.2,16.49479596]
[1768980479395,11.73695904,2981.7,2981.2,17.04979596]
[1768980480715,11.73695904,2981.9,2981.3,12.34512234]
[1768980480895,0.554,2982.2,2981.5,12.34512234]
[1768980481091,0.27167227,2982.1,2981.5,12.34512234]
[1768980481303,0.27167227,2982.0,2981.5,12.34512234]
[1768980481509,12.29095904,2982.2,2981.5,12.34512234]
[1768980481691,1.50067325,2982.1,2981.5,12.34512234]
[1768980481902,0.27157735,2982.0,2981.5,12.90012234]
[1768980482210,1.2290959,2982.1,2981.5,12.90012234]
[1768980482375,0.27150113,2982.0,2981.5,12.90012234]
[1768980482576,1.29106549,2982.4,2981.6,0.03353903]
[1768980482884,0.82550513,2982.3,2981.7,12.34512234]
[1768980483085,13.39381714,2982.2,2981.8,12.34512234]
[1768980483280,0.27150513,2982.1,2981.8,12.28882603]
[1768980483485,0.27150513,2982.0,2981.8,12.10907936]
[1768980483805,13.12231201,2982.2,2981.8,11.90265938]
[1768980483989,1.63908196,2982.1,2981.8,11.71499908]
[1768980484192,1.3676312,2982.1,2981.8,11.50856653]
[1768980484397,1.3676312,2982.1,2981.8,0.555]
[1768980484601,13.10459024,2982.1,2981.8,0.555]
[1768980485003,13.10459024,2982.1,2981.8,0.412807]
[1768980485207,13.10459024,2982.1,2981.8,0.17673578]
[1768980485509,13.10459024,2982.1,2981.7,12.34512234]
[1768980486502,1.44899432,2982.0,2981.7,12.34512234]
[1768980486707,1.44899432,2982.0,2981.7,12.90012234]
[1768980488017,11.73695904,2982.2,2981.7,12.90012234]
[1768980488182,0.27138788,2982.1,2981.7,12.90012234]
[1768980488381,11.73695904,2982.2,2981.7,12.90012234]
[1768980488612,0.27142059,2982.1,2981.7,12.90012234]
[1768980488812,11.73695904,2982.2,2981.7,12.90012234]
[1768980489014,13.23747528,2982.1,2981.7,12.90012234]
[1768980489219,12.96605494,2982.1,2981.7,13.45512234]
[1768980489382,1.2290959,2982.1,2981.7,13.45512234]
[1768980491008,11.73695904,2982.1,2981.7,13.45512234]
[1768980491723,11.73695904,2982.1,2981.7,14.01012234]
[1768980491884,11.73695904,2982.1,2981.7,1.665]
[1768980492291,11.73695904,2982.1,2981.7,14.01012234]
[1768980493113,0.27162804,2982.0,2981.7,14.01012234]
[1768980493421,11.73695904,2982.1,2981.7,14.01012234]
[1768980493588,1.44532422,2982.0,2981.7,14.01012234]
[1768980493919,12.91065494,2982.0,2981.7,1.665]
[1768980494222,1.1736959,2982.0,2981.7,14.56512234]
[1768980494383,0.001,2981.9,2981.7,14.56512234]
[1768980495021,11.73695904,2981.8,2981.5,0.555]
[1768980495198,11.57597041,2981.6,2980.2,11.84959354]
[1768980495394,11.57597041,2981.6,2980.1,1.20864816]
[1768980495395,11.57597041,2981.4,2980.4,11.84959354]
[1768980496627,11.57597041,2981.4,2980.7,11.84959354]
[1768980496919,11.57597041,2981.4,2980.7,12.40359354]
[1768980497890,1.8934333,2981.5,2980.9,11.84959354]
[1768980498120,11.57597041,2981.6,2981.1,11.84959354]
[1768980498315,0.27145494,2981.5,2981.1,11.84959354]
[1768980498496,11.57597041,2981.6,2981.1,11.84959354]
[1768980498825,11.84742571,2981.5,2981.1,11.84959354]
[1768980499002,11.57597041,2981.5,2981.1,12.40459354]
[1768980499203,12.95556745,2981.5,2981.1,12.40459354]
[1768980500824,1.37959704,2981.5,2981.1,12.40459354]
[1768980501022,11.57597041,2981.6,2981.1,12.40459354]
[1768980501226,11.84740467,2981.5,2981.1,12.40459354]
[1768980501417,11.57597041,2981.5,2981.1,12.95959354]
[1768980501795,11.57597041,2981.5,2981.1,1e-08]
[1768980502626,11.84743087,2981.4,2981.1,1e-08]
[1768980502789,11.57597041,2981.4,2981.1,1e-08]
[1768980503929,0.27144803,2981.3,2981.1,0.55500001]
[1768980504134,11.57597041,2981.4,2980.9,12.40357831]
[1768980504347,0.27150242,2981.3,2980.9,12.40357831]
[1768980504633,11.57597041,2981.4,2980.9,12.40357831]
[1768980505401,11.57597041,2981.4,2980.9,12.40459354]
[1768980505618,12.34344973,2981.4,2980.9,12.40459354]
[1768980505822,11.57597041,2981.5,2980.9,12.40459354]
[1768980506021,0.27151293,2981.4,2980.9,12.40459354]
[1768980506259,0.27162335,2981.3,2980.9,12.95959354]
[1768980506469,11.57597041,2981.4,2980.9,12.95959354]
[1768980506620,0.27162328,2981.3,2980.9,12.95959354]
[1768980506947,11.57597041,2981.7,2981.1,10.08561056]
[1768980507112,3.90771937,2981.8,2981.1,10.08561056]
[1768980507113,0.001,2981.3,2981.1,10.08561056]
[1768980507949,0.001,2981.3,2981.0,11.84959354]
[1768980508769,0.001,2981.3,2981.0,12.40459354]
[1768980509456,12.12997041,2981.8,2981.1,11.84959354]
[1768980509655,1.48482845,2981.7,2981.1,11.84959354]
[1768980509862,0.27173141,2981.6,2981.1,11.84959354]
[1768980510020,0.27173141,2981.5,2981.1,11.84959354]
[1768980510223,0.27173356,2981.4,2981.1,11.84959354]
[1768980510423,11.57597041,2981.7,2981.1,11.84959354]
[1768980510724,0.27173353,2981.6,2981.1,11.84959354]
[1768980511074,12.78906745,2981.7,2981.1,11.84959354]
[1768980511075,0.27173353,2981.5,2981.1,11.84959354]
[1768980511376,0.27173353,2981.4,2981.1,12.40459354]
[1768980511657,0.554,2981.8,2981.1,12.40459354]
[1768980511831,0.271739,2981.7,2981.2,0.03354353]
[1768980512035,0.271739,2981.6,2981.3,11.84959354]
[1768980512364,11.57697041,2981.9,2981.3,11.84959354]
[1768980512585,0.27177971,2981.8,2981.3,12.40459354]
[1768980512750,3.35307784,2982.4,2981.8,11.84959354]
[1768980512751,11.57597041,2982.4,2981.8,11.84959354]
[1768980513724,11.57597041,2982.4,2981.8,12.40459354]
[1768980516323,11.57597041,2982.4,2981.8,12.95959354]
[1768980516523,0.001,2982.5,2981.8,12.95959354]
[1768980516757,11.57697041,2982.5,2981.8,12.95959354]
[1768980517258,0.001,2982.5,2981.8,13.60455802]
[1768980517432,0.001,2982.5,2981.9,11.84959354]
[1768980518729,0.001,2982.5,2981.9,12.40459354]
[1768980520053,0.001,2982.2,2981.9,12.40459354]
[1768980520327,0.001,2982.5,2982.0,11.84959354]
[1768980520530,0.001,2982.5,2982.2,11.84959354]
[1768980521677,0.001,2982.5,2982.2,12.40459354]
[1768980524063,0.001,2982.5,2982.2,12.95959354]
[1768980524262,11.57697041,2982.5,2982.3,0.554]
[1768980526663,0.001,2982.5,2982.3,0.554]
[1768980526880,0.001,2982.5,2982.3,1.109]
[1768980530136,0.001,2982.5,2982.3,1.664]
[1768980531871,0.554,2983.0,2982.4,11.72015848]
[1768980532189,12.37535339,2983.0,2982.4,11.68662844]
[1768980532704,12.37535339,2983.0,2982.5,0.03352891]
[1768980532890,12.60950797,2982.9,2982.5,0.03352891]
[1768980533090,12.60950797,2982.9,2982.4,12.24162844]
[1768980534902,12.60950797,2982.9,2982.4,12.79662844]
[1768980536574,0.78815458,2982.9,2982.4,12.79662844]
[1768980536804,11.82135339,2983.1,2982.6,11.68662844]
[1768980536985,11.82135339,2983.4,2982.6,11.68662844]
[1768980537179,11.82135339,2983.4,2982.6,12.24162844]
[1768980539775,11.82135339,2983.4,2982.6,12.79662844]
[1768980540009,11.82135339,2983.2,2982.6,12.79662844]
[1768980541313,1.57271225,2983.3,2982.6,12.79662844]
[1768980541612,1.57271225,2983.3,2982.8,11.68662844]
[1768980542223,11.82135339,2983.4,2982.8,12.24162844]
[1768980544586,11.82135339,2983.4,2982.8,12.79662844]
[1768980545489,0.001,2983.1,2982.8,12.79662844]
[1768980546987,0.001,2983.1,2982.8,13.35162844]
[1768980549750,0.001,2983.1,2982.8,13.90662844]
[1768980550329,0.001,2983.1,2982.9,11.68662844]